bitfinex-derivatives/quotes_ETHF0:USTF0_20250224
["timestamp","ask_amount","ask_price","bid_price","bid_amount"]
[1740408666051,3.2078,2667.2,2666.7,0.74987]
[1740408666239,6.25115904,2667.5,2666.7,1.87475]
[1740408666543,0.3757,2667.3,2666.9,1.87457]
[1740408666751,0.3757,2667.8,2667.0,3.2078]
[1740408666944,0.3757,2667.8,2667.2,1.8744]
[1740408667145,0.3757,2667.6,2667.0,5.08233]
[1740408667348,0.3757,2667.2,2666.7,3.2078]
[1740408667545,0.3757,2666.8,2666.2,5.8809]
[1740408667745,0.3757,2666.5,2666.2,2.6731]
[1740408668153,0.3757,2666.5,2665.8,3.2078]
[1740408668344,3.2078,2666.4,2665.5,3.2078]
[1740408668539,3.95786,2666.1,2665.5,3.2078]
[1740408668744,3.95786,2666.1,2665.5,3.95803]
[1740408668939,3.2078,2666.1,2664.9,3.68297523]
[1740408669244,3.2078,2665.4,2664.9,0.47517523]
[1740408669450,3.2078,2665.4,2664.6,3.2078]
[1740408669451,6.8608,2665.4,2664.6,3.2078]
[1740408669948,0.75032,2665.2,2664.8,0.75041]
[1740408670146,6.8608,2665.4,2664.6,3.2078]
[1740408670346,0.00563275,2665.3,2664.7,0.00563275]
[1740408671843,3.2078,2664.8,2664.7,0.00563275]
[1740408672043,3.95823,2664.8,2664.7,0.00563275]
[1740408672843,0.75062,2664.2,2663.5,8.5874]
[1740408673038,3.2078,2664.2,2663.8,0.7507]
[1740408673351,3.2078,2664.2,2663.5,8.5874]
[1740408673548,3.2078,2664.2,2663.5,3.2078]
[1740408673743,5.7765,2664.5,2663.5,3.2078]
[1740408673960,6.8618,2664.5,2663.5,5.08474]
[1740408674255,3.2078,2664.5,2663.9,3.2078]
[1740408674545,3.2078,2664.5,2663.6,3.65863275]
[1740408674749,3.2078,2664.5,2663.8,0.7507]
[1740408675052,3.2078,2664.5,2663.6,0.00563275]
[1740408675053,3.21343275,2664.5,2664.2,0.75058]
[1740408675249,0.00563275,2664.5,2664.4,0.75054]
[1740408675444,0.00563275,2664.5,2663.8,5.08459]
[1740408675643,0.00563275,2664.5,2664.4,3.95834]
[1740408675843,0.00563275,2664.5,2663.9,2.7233]
[1740408676250,3.21343275,2664.5,2663.8,3.2078]
[1740408676745,3.2078,2664.3,2663.9,0.75066]
[1740408676948,3.2078,2664.3,2663.7,3.2078]
[1740408677444,3.2078,2664.3,2663.6,3.21343275]
[1740408677649,0.00563275,2664.5,2664.4,0.75054]
[1740408677956,2.75e-06,2664.5,2664.4,0.75054]
[1740408678149,2.75e-06,2664.5,2664.4,6.75054]
[1740408678355,6.4056,2665.9,2664.4,47.2645449]
[1740408678556,2.641,2666.2,2665.0,3.2078]
[1740408678751,3.2078,2666.5,2665.6,3.2078]
[1740408679056,0.75008,2666.1,2665.8,0.75014]
[1740408679257,3.2078,2666.2,2665.3,3.651]
[1740408679459,3.2078,2666.2,2665.3,6.8588]
[1740408679653,0.75573275,2666.0,2665.5,0.00563275]
[1740408679850,0.00563275,2666.0,2665.9,0.75012]
[1740408680048,0.00563275,2666.0,2665.6,3.2078]
[1740408680758,0.00563275,2666.0,2665.7,0.75016]
[1740408680954,0.00563275,2666.0,2665.6,3.2078]
[1740408681464,0.00563275,2666.0,2665.9,0.75012]
[1740408681850,0.00563275,2666.0,2665.8,0.75014]
[1740408682051,0.00563275,2666.0,2665.6,3.2078]
[1740408682549,0.00563275,2666.0,2665.7,0.75015]
[1740408682749,0.00563275,2666.0,2665.6,3.2078]
[1740408682960,0.75573275,2666.0,2665.6,3.2078]
[1740408683150,0.00563275,2666.0,2665.6,3.2078]
[1740408683347,0.00563275,2666.0,2665.8,0.75015]
[1740408683656,0.00563275,2666.0,2665.6,3.2078]
[1740408683657,0.00563275,2666.0,2665.9,3.95792]
[1740408684255,0.00563275,2666.0,2665.9,9.95792]
[1740408684561,0.3757,2667.1,2665.9,9.67333662]
[1740408684854,0.3757,2667.1,2667.0,0.37341]
[1740408685162,0.3757,2667.1,2667.0,3.58121]
[1740408685453,0.3757,2667.8,2667.0,3.2078]
[1740408685654,2.7307,2667.9,2667.0,6.8548]
[1740408685655,0.3757,2667.4,2667.0,6.8548]
[1740408685859,0.3757,2667.4,2667.3,3.95753]
[1740408686262,3.48538939,2668.3,2667.3,3.95753]
[1740408686263,0.3757,2667.5,2667.3,3.2078]
[1740408686453,1.1254,2667.4,2667.3,3.2078]
[1740408686660,0.3757,2667.4,2667.0,5.9133]
[1740408686964,1.12544,2667.3,2667.0,3.9576]
[1740408687160,0.3757,2667.3,2667.0,3.2078]
[1740408687756,3.2078,2667.7,2667.6,0.74964]
[1740408687962,3.641,2668.2,2667.1,1.87447]
[1740408688151,3.641,2668.2,2667.0,3.2078]
[1740408688152,3.2078,2668.0,2667.3,3.95751]
[1740408688357,6.94435,2668.0,2667.3,3.2078]
[1740408688559,6.1948,2668.0,2667.3,3.2078]
[1740408688860,3.2078,2668.0,2667.9,0.74956]
[1740408689063,3.5835,2668.3,2667.6,5.08187]
[1740408689356,3.5835,2668.3,2667.6,3.2078]
[1740408689557,3.5835,2668.3,2667.2,3.2078]
[1740408689755,3.5835,2668.3,2667.6,3.2078]
[1740408689956,3.5835,2668.3,2668.1,0.74947]
[1740408690157,3.5835,2668.3,2667.7,1.87404]
[1740408690158,0.3757,2668.4,2668.3,0.74945]
[1740408690561,0.3757,2668.4,2668.2,0.74946]
[1740408690756,0.3757,2668.4,2668.3,0.74945]
[1740408691157,0.3757,2668.6,2668.4,0.7494]
[1740408691358,0.3757,2668.6,2668.5,0.74939]
[1740408691565,0.3757,2668.6,2668.5,3.95719]
[1740408691761,3.2078,2669.3,2669.2,0.74919]
[1740408691959,6.8518,2670.0,2669.4,0.74913]
[1740408692158,0.74908,2669.7,2669.3,0.37275]
[1740408692363,0.74906,2669.7,2669.3,0.74914]
[1740408692662,0.74906,2669.7,2669.3,0.74915]
[1740408692663,3.95686,2669.7,2669.3,0.74915]
[1740408692860,0.3757,2669.6,2669.0,3.2078]
[1740408693964,0.3757,2669.6,2668.9,5.52516]
[1740408694164,3.2078,2670.4,2669.5,3.2078]
[1740408694362,0.3757,2670.0,2669.6,3.666]
[1740408694566,0.3757,2670.0,2669.9,0.749]
[1740408694868,0.3757,2670.0,2669.5,0.00562177]
[1740408695260,1.12467,2670.0,2669.5,0.00562177]
[1740408695460,0.3757,2670.0,2669.5,0.00562177]
[1740408695658,0.74907,2669.7,2669.5,0.00562177]
[1740408695859,0.3757,2670.0,2669.5,0.00562177]
[1740408696366,0.3757,2670.3,2670.2,0.74891]
[1740408697164,0.3757,2670.3,2670.1,0.74893]
[1740408697469,0.3757,2670.0,2669.9,3.2078]
[1740408697664,0.3757,2670.0,2669.9,3.9568]
[1740408697870,0.3757,2670.0,2669.9,0.749]
[1740408698172,0.3757,2670.0,2669.8,0.74902]
[1740408698470,0.3757,2669.8,2669.7,0.74905]
[1740408699371,0.3757,2669.8,2669.6,3.2078]
[1740408699572,0.3757,2669.8,2669.7,0.74905]
[1740408700069,0.3757,2669.8,2669.7,10.40605]
[1740408700261,0.3757,2670.5,2669.9,1.87246]
[1740408700461,0.3757,2670.5,2670.0,3.2078]
[1740408700671,0.3757,2670.5,2670.4,0.74886]
[1740408700965,0.3757,2670.8,2670.4,0.74886]
[1740408701164,0.3757,2670.8,2670.7,0.74877]
[1740408702070,0.3757,2670.7,2670.3,47.6608]
[1740408702270,0.3757,2670.7,2670.6,0.7488]
[1740408702464,0.3757,2670.7,2670.6,0.3724]
[1740408703068,0.3757,2671.4,2670.6,3.2078]
[1740408703262,1.12453,2670.5,2670.4,0.74884]
[1740408703469,5.67575655,2671.9,2670.2,0.7489]
[1740408703470,0.3757,2670.3,2670.2,0.7489]
[1740408703668,0.3757,2670.0,2669.8,3.2078]
[1740408703974,0.3757,2670.0,2669.5,1.87838177]
[1740408703975,0.3757,2669.8,2669.5,3.21342177]
[1740408704272,0.3757,2669.6,2669.5,0.75473177]
[1740408704768,3.148,2670.6,2670.5,0.74883]
[1740408705169,0.3757,2670.8,2670.7,0.74877]
[1740408705672,0.3757,2670.6,2670.2,5.08009]
[1740408705969,0.3757,2670.6,2670.5,3.95663]
[1740408706170,2.5566,2671.4,2670.5,12.8638]
[1740408706364,0.74864,2671.2,2671.1,0.74864]
[1740408706569,0.74869,2671.1,2671.0,0.74868]
[1740408706771,0.74869,2671.1,2670.6,1.87199]
[1740408706772,0.3757,2671.1,2670.6,1.87199]
[1740408706959,2.5566,2671.4,2670.8,0.00562177]
[1740408706960,3.2078,2671.2,2670.8,0.00562177]
[1740408707163,0.74872,2670.9,2670.8,0.00562177]
[1740408707766,1.12442,2670.9,2670.8,0.00562177]
[1740408707968,0.3757,2670.7,2670.6,0.7488]
[1740408708173,0.3757,2670.7,2670.1,3.2078]
[1740408708374,0.3757,2670.2,2669.7,3.2078]
[1740408708568,0.3757,2669.9,2669.8,0.74901]
[1740408709164,0.3757,2669.9,2669.8,0.74902]
[1740408709374,0.3757,2669.9,2669.7,3.2078]
[1740408709669,1.12475,2669.7,2669.6,0.00562177]
[1740408710170,1.12475,2669.7,2669.0,3.2078]
[1740408710171,0.3757,2669.4,2669.0,3.2078]
[1740408710369,1.12486,2669.4,2669.1,0.74921]
[1740408710668,0.3757,2669.4,2669.0,3.2078]
[1740408710867,0.3757,2669.4,2669.3,0.74917]
[1740408711063,0.3757,2669.6,2669.0,5.08088]
[1740408711271,3.644,2669.8,2669.0,5.08088]
[1740408711272,0.3757,2669.4,2669.2,0.74918]
[1740408711475,0.3757,2669.2,2669.1,0.00562177]
[1740408711770,1.12489,2669.2,2669.1,0.00562177]
[1740408712169,0.3757,2669.2,2669.1,0.00562177]
[1740408712369,1.12489,2669.2,2669.1,0.00562177]
[1740408712570,3.2078,2669.3,2669.1,0.00562177]
[1740408712774,0.3757,2669.9,2669.1,0.00562177]
[1740408712975,0.3757,2669.9,2669.6,0.74905]
[1740408713281,0.3757,2669.9,2669.8,0.74902]
[1740408713671,0.3757,2670.0,2669.5,1.87273]
[1740408713872,0.3757,2670.0,2669.9,0.749]
[1740408714473,0.3757,2670.0,2669.5,1.87273]
[1740408714670,0.00558517,2670.1,2669.5,1.87273]
[1740408714876,1.12468,2670.0,2669.4,3.2078]
[1740408715065,0.3757,2669.7,2669.1,0.00562177]
[1740408715269,0.3757,2669.6,2669.1,0.00562177]
[1740408715474,0.3757,2669.6,2669.5,0.74911]
[1740408716076,0.3757,2669.6,2669.4,0.74913]
[1740408716277,0.3757,2669.6,2669.4,0.74914]
[1740408716575,1.1248,2669.6,2669.2,0.74917]
[1740408716783,0.3757,2669.6,2669.1,3.21342177]
[1740408717079,0.3757,2669.6,2669.5,0.74911]
[1740408717277,0.3757,2669.9,2669.1,3.21342177]
[1740408717572,0.3757,2669.9,2669.8,0.37262]
[1740408718375,0.00558517,2670.1,2669.8,0.37262]
[1740408718376,0.38128517,2670.1,2670.0,0.74897]
[1740408718571,0.38128517,2670.1,2670.0,4.38297]
[1740408718770,0.38128517,2670.1,2670.0,10.38297]
[1740408718977,0.38128517,2670.1,2670.0,4.38297]
[1740408719170,0.38128517,2670.1,2670.0,45.18297]
[1740408719374,0.00558517,2670.1,2670.0,4.38297]
[1740408719779,0.00558517,2670.1,2670.0,4.85098664]
[1740408719973,0.38128517,2670.1,2670.0,0.46801664]
[1740408720171,0.38128517,2670.1,2670.0,0.74897]
[1740408720674,0.3757,2669.6,2669.3,0.74917]
[1740408720877,0.3757,2669.4,2669.2,3.2078]
[1740408721284,0.3757,2669.2,2668.7,3.2078]
[1740408721576,0.3757,2669.2,2669.1,0.75484177]
[1740408721880,0.3757,2669.2,2669.1,10.42267235]
[1740408722083,0.00558517,2670.1,2670.0,0.74897]
[1740408722384,0.38128517,2670.1,2670.0,0.74897]
[1740408722582,1.13022517,2670.1,2670.0,0.74897]
[1740408722781,0.38128517,2670.1,2669.6,40.8]
[1740408722977,0.3757,2669.6,2669.2,6.0348]
[1740408723281,1.12479,2669.6,2669.4,0.74912]
[1740408723483,0.3757,2669.6,2669.4,0.74912]
[1740408723676,0.3757,2669.6,2669.3,0.46011706]
[1740408723876,0.3757,2669.4,2669.3,1.20928706]
[1740408724083,0.3757,2669.4,2669.3,0.74917]
[1740408724285,0.3757,2669.4,2669.3,6.74917]
[1740408724688,0.3757,2669.4,2669.3,0.74917]
[1740408725186,3.21338517,2670.1,2669.3,0.46010613]
[1740408725483,0.7491,2669.6,2669.5,0.7491]
[1740408725682,0.7491,2669.6,2669.1,2.72792177]
[1740408725683,3.2078,2669.8,2669.1,2.72792177]
[1740408725880,0.74909,2669.6,2669.4,0.74911]
[1740408726077,0.74918,2669.3,2669.1,0.75483177]
[1740408726278,3.5835,2669.7,2669.1,0.00562177]
[1740408726486,0.3757,2669.6,2669.1,0.00562177]
[1740408726687,0.3757,2669.6,2669.5,0.74911]
[1740408726895,2.24843,2669.6,2669.1,0.00562177]
[1740408727092,0.3757,2669.6,2669.1,0.00562177]
[1740408727291,0.3757,2669.6,2669.1,1.87865177]
[1740408727498,0.3757,2669.9,2669.1,3.21342177]
[1740408727699,0.3757,2669.9,2669.2,1.87299]
[1740408727995,0.3757,2669.9,2669.8,0.74902]
[1740408728191,0.3757,2669.9,2669.8,4.38002]
[1740408728591,0.00558517,2670.1,2670.0,0.74897]
[1740408728889,0.009616,2670.9,2670.8,0.74874]
[1740408729289,0.74875,2670.8,2670.7,0.74877]
[1740408729493,1.881416,2670.9,2670.1,3.2078]
[1740408729795,0.009616,2670.9,2670.1,3.95674]
[1740408730095,1.12458,2670.3,2670.2,0.00562177]
[1740408730595,0.3757,2669.6,2668.7,3.2078]
[1740408730787,0.74918,2669.3,2668.7,3.2078]
[1740408731093,3.2078,2669.5,2668.8,0.45997823]
[1740408731292,0.74928,2668.9,2668.8,0.45997823]
[1740408731690,0.00562177,2669.1,2668.6,0.00562177]
[1740408731892,0.00562177,2669.1,2668.9,0.74927]
[1740408732086,0.00562177,2669.1,2669.0,0.74925]
[1740408732294,0.3757,2669.6,2669.0,3.2078]
[1740408732488,2.6394,2670.2,2668.6,0.00562177]
[1740408732489,3.2078,2669.3,2668.6,0.00562177]
[1740408732689,0.74933,2668.7,2668.6,0.00562177]
[1740408732901,0.74932,2668.8,2668.6,0.00562177]
[1740408733092,3.95713,2668.7,2668.6,0.00562177]
[1740408733293,6.8558,2668.7,2667.6,3.2078]
[1740408733496,3.2078,2668.4,2668.0,0.74951]
[1740408733794,6.1948,2668.4,2667.8,40.8]
[1740408733993,6.1948,2668.4,2667.3,22.65127]
[1740408733994,3.2078,2668.1,2667.3,3.2078]
[1740408734199,3.2078,2667.7,2667.0,3.2078]
[1740408734496,3.2078,2667.3,2667.1,0.00562177]
[1740408734696,0.74976,2667.2,2667.1,0.00562177]
[1740408734894,3.2078,2667.3,2667.1,0.00562177]
[1740408735296,3.2078,2667.3,2666.3,8.74749724]
[1740408735500,3.2078,2666.5,2666.3,8.74749724]
[1740408735697,0.74998,2666.4,2666.3,8.74749724]
[1740408736090,3.95777,2666.5,2666.3,8.74749724]
[1740408736598,3.2078,2666.9,2666.3,8.74749724]
[1740408736899,3.653,2667.3,2667.1,0.74978]
[1740408737097,0.7497,2667.4,2666.5,6.8638]
[1740408737301,3.21342177,2667.6,2666.5,6.8638]
[1740408737696,3.2078,2667.3,2666.5,6.8638]
[1740408737995,3.95755,2667.3,2666.8,0.74984]
[1740408738189,3.2078,2667.3,2666.4,3.2078]
[1740408738395,0.74985,2666.9,2666.4,0.74997]
[1740408738599,5.8189,2667.3,2666.5,3.2078]
[1740408738799,6.56864,2667.3,2666.5,3.2078]
[1740408739096,5.8189,2667.3,2666.5,5.08265]
[1740408739297,5.8189,2667.3,2666.5,3.2078]
[1740408739500,0.74982,2667.0,2666.5,0.74994]
[1740408739800,0.74988,2666.8,2666.3,0.75]
[1740408740099,0.74988,2666.8,2666.1,0.00562177]
[1740408740100,3.2078,2666.8,2666.1,0.00562177]
[1740408740302,3.95768,2666.8,2666.4,0.74998]
[1740408740888,3.662,2666.9,2666.1,3.21342177]
[1740408741095,3.662,2666.9,2666.8,0.74987]
[1740408741399,6.66466,2667.2,2666.8,0.74987]
[1740408741701,5.9149,2667.2,2666.5,3.659]
[1740408741998,3.2078,2667.1,2666.1,3.66462177]
[1740408742197,3.2078,2667.1,2666.4,1.87496]
[1740408742398,3.2078,2667.1,2667.0,0.74981]
[1740408742803,3.2078,2667.1,2667.0,41.54981]
[1740408743099,3.2078,2667.1,2667.0,40.8]
[1740408743505,0.00562177,2667.6,2667.0,44.0078]
[1740408743703,0.00562177,2667.6,2667.0,40.8]
[1740408744004,0.00562177,2667.6,2667.5,0.74967]
[1740408745505,3.2078,2668.3,2668.2,0.74947]
[1740408745705,2.5786,2668.7,2668.6,0.74936]
[1740408745899,0.28427425,2668.8,2668.1,5.08152]
[1740408746102,0.28427425,2668.8,2668.1,3.2078]
[1740408746405,0.7494,2668.5,2668.1,0.74948]
[1740408746601,3.2078,2668.6,2668.2,0.00562177]
[1740408746794,3.95725,2668.3,2668.2,0.00562177]
[1740408747507,0.74961,2667.8,2667.4,0.74969]
[1740408747696,3.2078,2667.9,2667.0,49.52628]
[1740408747896,5.3279,2668.4,2667.2,3.2078]
[1740408748205,0.74946,2668.3,2667.9,0.74953]
[1740408748402,2.6514,2668.4,2668.3,0.74945]
[1740408748897,3.2078,2668.6,2668.1,0.00562177]
[1740408749298,3.2078,2668.6,2668.2,0.74946]
[1740408749498,3.2078,2668.6,2668.1,0.00562177]
[1740408749703,3.95716,2668.6,2668.2,0.74946]
[1740408749904,0.74947,2668.2,2668.1,0.00562177]
[1740408750303,3.2078,2668.3,2668.1,0.00562177]
[1740408750501,0.74947,2668.2,2668.1,0.00562177]
[1740408752604,4.38147,2668.2,2668.1,0.00562177]
[1740408753804,0.74955,2668.0,2667.7,0.7496]
[1740408754003,3.95734,2668.0,2667.7,0.7496]
[1740408754210,0.74956,2667.9,2667.7,0.7496]
[1740408754410,0.74956,2667.9,2667.3,5.0821]
[1740408754411,3.2078,2668.0,2667.6,0.74963]
[1740408754604,3.2078,2668.0,2667.3,3.2078]
[1740408755105,3.2078,2667.7,2667.4,0.00562177]
[1740408755805,0.74967,2667.5,2667.4,0.00562177]
[1740408756209,0.74966,2667.6,2667.4,0.00562177]
[1740408756899,3.2078,2667.7,2667.6,0.74964]
[1740408757305,3.2078,2667.7,2667.6,6.0]
[1740408757509,3.95741,2667.7,2667.6,46.8]
[1740408757708,0.74967,2667.5,2667.4,0.00562177]
[1740408758009,3.95744,2667.7,2667.4,0.00562177]
[1740408758203,3.2078,2667.7,2667.6,0.74964]
[1740408758407,3.2078,2668.0,2667.9,0.74956]
[1740408758906,0.74941,2668.5,2668.3,0.74944]
[1740408759111,3.21342177,2668.7,2667.9,1.87388]
[1740408759309,0.74948,2668.2,2668.0,0.74952]
[1740408759508,0.74937,2668.6,2667.9,1.87387]
[1740408759711,0.7494,2668.5,2668.3,0.74944]
[1740408759909,3.21342177,2668.7,2668.4,0.74942]
[1740408760108,3.21342177,2668.7,2668.3,0.74943]
[1740408760306,0.74938,2668.6,2668.3,0.74943]
[1740408760502,3.21342177,2668.7,2667.9,4.5557]
[1740408760713,3.21342177,2668.7,2668.1,5.08156]
[1740408760908,3.21342177,2668.7,2668.2,1.87369]
[1740408761109,3.21342177,2668.7,2668.1,5.08156]
[1740408761307,0.00562177,2668.7,2668.6,0.74936]
[1740408761516,0.00562177,2668.7,2668.5,0.74938]
[1740408761709,0.00562177,2668.7,2668.2,1.87363]
[1740408762017,0.00562177,2668.7,2668.0,3.2078]
[1740408762309,0.00562177,2668.7,2668.1,3.602]
[1740408762609,0.00562177,2668.7,2668.6,0.74936]
[1740408763007,0.00562177,2668.7,2668.4,3.2078]
[1740408763212,3.21342177,2668.7,2668.1,3.602]
[1740408763602,3.21342177,2668.7,2668.1,6.8098]
[1740408764009,3.21342177,2668.7,2668.1,3.602]
[1740408764308,0.74951,2668.1,2667.8,3.95737]
[1740408764509,3.2078,2668.4,2667.8,3.2078]
[1740408764904,3.2078,2668.4,2668.0,0.74953]
[1740408765109,3.21342177,2668.7,2668.0,1.87383]
[1740408765309,3.21342177,2668.7,2667.9,4.55568]
[1740408765310,0.7494,2668.5,2667.9,4.55568]
[1740408765512,0.74946,2668.3,2668.0,0.74951]
[1740408765711,3.21342177,2668.7,2667.9,4.55568]
[1740408766105,0.74942,2668.4,2667.9,2.6818]
[1740408766313,5.08679177,2668.7,2667.9,2.6818]
[1740408766510,5.08679177,2668.7,2668.0,0.74952]
[1740408766810,5.08679177,2668.7,2667.9,2.6818]
[1740408767111,3.2078,2668.0,2667.3,3.2078]
[1740408767614,0.74967,2667.5,2667.1,0.74977]
[1740408768013,0.74967,2667.5,2666.8,5.5558]
[1740408768712,3.2078,2667.7,2667.5,0.74966]
[1740408768916,3.2078,2667.7,2667.0,3.2078]
[1740408769120,0.74967,2667.5,2667.0,3.2078]
[1740408769819,3.2078,2667.7,2667.6,0.74964]
[1740408770019,3.95744,2667.7,2667.1,3.588]
[1740408770217,3.2078,2667.7,2667.6,0.74964]
[1740408770417,2.8074,2668.2,2667.1,5.46243]
[1740408770418,0.74947,2668.2,2667.5,1.87414]
[1740408770613,3.587,2668.3,2667.5,1.87414]
[1740408770914,3.2078,2668.4,2667.7,1.87398]
[1740408771120,3.2078,2668.4,2667.8,1.87397]
[1740408771315,3.2078,2668.4,2668.2,0.74945]
[1740408771514,3.2078,2668.4,2668.3,0.74945]
[1740408771716,0.00562177,2668.7,2668.0,1.8738]
[1740408772119,0.00562177,2668.7,2667.9,3.2078]
[1740408772317,0.75496177,2668.7,2668.4,0.7494]
[1740408772921,0.00562177,2668.7,2668.0,1.87383]
[1740408773113,0.74937,2668.6,2668.3,0.74943]
[1740408773313,0.00562177,2668.7,2668.0,1.87383]
[1740408773618,0.74938,2668.6,2668.3,0.74944]
[1740408773821,0.00562177,2668.7,2668.2,3.2078]
[1740408774026,3.2078,2668.5,2668.1,44.369]
[1740408774219,3.2078,2668.5,2667.9,3.2078]
[1740408774220,3.2078,2668.5,2667.7,5.3935]
[1740408774425,0.00562177,2668.7,2667.9,3.2078]
[1740408774720,0.00562177,2668.7,2667.9,44.0078]
[1740408774915,0.00562177,2668.7,2668.6,0.74936]
[1740408775719,0.00562177,2668.7,2668.2,6.7808]
[1740408775922,0.00562177,2668.7,2668.6,0.74936]
[1740408777016,3.2078,2669.5,2669.2,0.74919]
[1740408777017,0.3757,2669.3,2669.2,0.74919]
[1740408777223,3.2078,2669.8,2669.2,1.87299]
[1740408777423,0.3757,2669.7,2669.1,3.2078]
[1740408777622,3.2078,2669.8,2669.6,0.74908]
[1740408777823,2.7565,2670.0,2669.4,3.2078]
[1740408778023,3.2078,2670.1,2669.4,5.08062]
[1740408778321,0.00562177,2670.0,2669.4,6.77742177]
[1740408778620,0.00562177,2670.0,2669.4,3.56962177]
[1740408778825,0.00562177,2670.0,2669.9,0.749]
[1740408779919,0.00562177,2670.0,2669.5,2.8668]
[1740408780125,0.00562177,2670.0,2669.8,0.74902]
[1740408780426,0.74902,2669.9,2669.5,3.61589]
[1740408780629,0.74911,2669.5,2669.4,0.00562177]
[1740408781122,3.2078,2669.8,2669.4,0.00562177]
[1740408781332,0.74911,2669.5,2669.4,0.00562177]
[1740408781625,3.95691,2669.5,2669.4,0.00562177]
[1740408781826,0.74904,2669.8,2669.4,0.00562177]
[1740408782024,0.00562177,2670.0,2669.5,1.87278]
[1740408782219,0.00562177,2670.0,2669.9,0.749]
[1740408783323,0.00562177,2670.0,2669.4,6.76942177]
[1740408783528,0.74901,2669.9,2669.6,0.74906]
[1740408783825,0.00562177,2670.0,2669.4,3.56162177]
[1740408784124,0.00562177,2670.0,2669.4,0.00562177]
[1740408784625,0.75459177,2670.0,2669.7,0.74904]
[1740408784821,0.74904,2669.8,2669.5,0.74911]
[1740408785127,0.74904,2669.8,2669.4,0.00562177]
[1740408785128,0.74911,2669.5,2669.4,0.00562177]
[1740408785522,3.55,2669.5,2668.3,3.55]
[1740408785715,5.08079,2669.2,2668.3,3.55]
[1740408785915,3.2078,2669.2,2668.3,3.55]
[1740408786119,0.74935,2668.7,2668.4,0.74941]
[1740408786321,5.08103,2668.9,2668.2,5.9183]
[1740408786631,3.2078,2668.9,2668.3,0.74944]
[1740408786822,0.74935,2668.7,2668.4,0.74941]
[1740408787016,3.2078,2668.9,2668.3,0.00562177]
[1740408787017,0.74942,2668.4,2668.3,0.00562177]
[1740408787422,3.548,2668.5,2667.4,2.7105]
[1740408787623,3.2078,2668.1,2667.4,2.7105]
[1740408788028,3.2078,2667.8,2667.4,2.7105]
[1740408788324,0.74975,2667.3,2666.8,0.74985]
[1740408788521,0.74974,2667.3,2666.9,0.74984]
[1740408788828,3.2078,2667.5,2666.8,0.00562177]
[1740408789020,3.95764,2666.9,2666.8,0.00562177]
[1740408789426,0.74995,2666.6,2666.0,0.75007]
[1740408789626,6.7538,2666.9,2666.0,3.2078]
[1740408789828,3.2078,2666.6,2666.2,0.75002]
[1740408790224,3.2078,2666.6,2665.9,3.546]
[1740408790424,0.75,2666.4,2665.9,3.546]
[1740408790619,0.75,2666.4,2666.0,0.00374782]
[1740408790620,2.987,2666.4,2666.0,0.00374782]
[1740408791727,2.987,2666.4,2666.3,0.75001]
[1740408792326,0.00562177,2666.5,2666.0,3.21154782]
[1740408792526,0.00562177,2666.5,2666.4,0.74998]
[1740408792826,0.00562177,2666.5,2666.4,41.54998]
[1740408793021,0.00562177,2666.5,2666.4,40.8]
[1740408793022,0.75557177,2666.5,2666.4,40.8]
[1740408793223,6.97657177,2666.5,2666.4,40.8]
[1740408793427,6.97657177,2666.5,2666.0,0.00374782]
[1740408793428,0.75003,2666.3,2666.0,0.00374782]
[1740408793628,3.2078,2666.3,2666.0,0.00374782]
[1740408793827,3.2078,2666.3,2666.1,0.75005]
[1740408794027,3.2078,2666.3,2666.0,40.80374782]
[1740408794028,6.22662177,2666.5,2666.0,40.80374782]
[1740408794226,6.22662177,2666.5,2666.2,0.75002]
[1740408794431,6.1948,2666.4,2666.0,40.80374782]
[1740408794731,6.1948,2666.4,2666.2,0.75003]
[1740408794929,6.1948,2666.4,2666.0,40.80374782]
[1740408795132,2.987,2666.4,2666.3,0.75001]
[1740408795633,6.1948,2666.4,2666.0,40.80374782]
[1740408795831,3.2078,2666.1,2666.0,0.75383782]
[1740408796128,0.00562177,2666.5,2666.3,0.75001]
[1740408796330,0.00562177,2666.5,2666.4,41.54998]
[1740408797033,0.00562177,2666.5,2666.4,40.8]
[1740408798127,0.00562177,2666.5,2666.0,0.00374782]
[1740408798632,0.00562177,2666.5,2666.2,0.75002]
[1740408798827,0.00562177,2666.5,2666.0,40.80374782]
[1740408799225,0.00562177,2666.5,2666.4,0.74998]
[1740408799927,0.00562177,2666.5,2666.3,0.74999]
[1740408800135,0.00562177,2666.5,2666.1,0.75006]
[1740408800333,0.75558177,2666.5,2666.2,0.75003]
[1740408800534,0.00562177,2666.5,2666.0,40.80374782]
[1740408800732,3.2078,2666.3,2666.0,40.80374782]
[1740408800927,0.75006,2666.1,2666.0,0.00374782]
[1740408801129,3.2078,2666.3,2666.0,0.00374782]
[1740408801327,3.95782,2666.3,2666.0,0.75381782]
[1740408801533,3.2078,2666.3,2666.2,0.75004]
[1740408802040,0.00562177,2666.5,2665.8,5.08315]
[1740408802241,3.96339177,2666.5,2666.2,0.75003]
[1740408802538,3.21342177,2666.5,2665.9,1.87531]
[1740408802841,3.2078,2666.3,2665.5,2.8228]
[1740408803031,3.2078,2666.3,2666.2,0.75004]
[1740408803226,0.00562177,2666.5,2665.5,2.8228]
[1740408803535,3.2078,2666.4,2665.6,40.8]
[1740408803726,0.75002,2666.3,2666.0,0.75008]
[1740408803931,3.2078,2666.4,2665.7,5.08322]
[1740408804132,0.00562177,2666.5,2666.1,1.87517]
[1740408804335,0.00562177,2666.5,2666.4,0.74998]
[1740408804733,1.77e-06,2666.5,2666.4,0.74998]
[1740408805829,1.77e-06,2666.5,2666.3,3.47999]
[1740408806129,1.77e-06,2666.5,2665.2,3.2078]
[1740408806130,1.87503,2666.3,2665.2,3.2078]
[1740408806336,3.2078,2666.0,2665.2,3.2078]